fUST/lending_fUST_20240127
["ID","MTS","AMOUNT","RATE_DAILY","PERIOD"]
[312854446,1706364641204,-153.0,0.00030137,2]
[312854447,1706364641213,-153.0,0.00030137,2]
[312854448,1706364641222,-153.0,0.00030137,2]
[312854449,1706364641231,-153.0,0.00030137,2]
[312854450,1706364641240,-153.0,0.00030137,2]
[312854451,1706364641249,-153.0,0.00030137,2]
[312854452,1706364641258,-153.0,0.00030137,2]
[312854453,1706364641267,-199.4415769,0.00030137,2]
[312854454,1706364641276,-153.0,0.00030137,2]
[312854455,1706364641285,-153.0,0.00030137,2]
[312854456,1706364641294,-199.4415769,0.00030137,2]
[312854457,1706364641302,-317.486678,0.00030137,2]
[312854458,1706364641311,-153.0,0.00030137,2]
[312854459,1706364641320,-153.0,0.00030137,2]
[312854460,1706364641329,-199.4415769,0.00030137,2]
[312854462,1706364641338,-158.81503,0.00030137,2]
[312854464,1706364641348,-272.585389,0.00030137,2]
[312854465,1706364641357,-151.0,0.00030729,2]
[312854466,1706364641366,-2000.0,0.00031,2]
[312854467,1706364641375,-6357.91141665,0.00031,7]
[312854468,1706364641384,-2000.0,0.0003101,2]
[312854469,1706364641393,-169.193814,0.00031019,2]
[312854470,1706364641402,-2000.0,0.0003102,2]
[312854471,1706364641411,-2000.0,0.0003103,2]
[312854472,1706364641421,-2794.066118,0.0003104,2]
[312854473,1706364641430,-272.585389,0.00031115,2]
[312854474,1706364641438,-620.00037723,0.0003158,2]
[312854475,1706364641447,-151.0,0.00031614,2]
[312854476,1706364641456,-158.81503,0.00031703,2]
[312854477,1706364641465,-39131.00414303,0.00032,15]
[312854478,1706364641474,-3138.37234854,0.00032,2]
[312854479,1706364641483,-897.97777174,0.00032,7]
[312854480,1706364641492,-300.0,0.00032,16]
[312854481,1706364641503,-82714.7913079,0.00032043,2]
[312854482,1706364641515,-151.0,0.00032043,2]
[312854483,1706364641524,-151.754742,0.00032043,2]
[312854484,1706364641533,-151.0,0.00032043,2]
[312854485,1706364641545,-179.978939,0.00032043,2]
[312854486,1706364641554,-179.978939,0.00032043,2]
[312854487,1706364641563,-151.0,0.00032043,2]
[312854488,1706364641572,-606.014986,0.00032043,2]
[312854489,1706364641581,-606.014986,0.00032043,2]
[312854490,1706364641592,-3026.607426,0.00032043,2]
[312854491,1706364641601,-3026.607426,0.00032043,2]
[312854492,1706364641610,-151.0,0.00032043,2]
[312854493,1706364641621,-151.0,0.00032043,2]
[312854494,1706364641631,-151.0,0.00032043,2]
[312854495,1706364641640,-9735.260304,0.00032043,2]
[312854496,1706364641649,-9735.260304,0.00032043,2]
[312854497,1706364641658,-272.585389,0.00032094,2]
[312854498,1706364641668,-151.0,0.00032498,2]
[312854499,1706364641677,-228.50754628,0.00033,2]
[312854500,1706364641686,-304.86419737,0.00033,3]
[312854501,1706364641695,-22355.32655684,0.00033,5]
[312854502,1706364641704,-272.585389,0.00033072,2]
[312854503,1706364641714,-620.00001886,0.00033159,2]
[312854504,1706364641723,-158.81503,0.00033268,2]
[312854505,1706364641733,-151.0,0.00033383,2]
[312854506,1706364641742,-300.0,0.000335,17]
[312854507,1706364641752,-272.585389,0.00034051,2]
[312854508,1706364641762,-151.0,0.00034267,2]
[312854509,1706364641843,-620.00000094,0.00034817,2]
[312854510,1706364641853,-158.81503,0.00034834,2]
[312854511,1706364641862,-151.01661183,0.00034866,2]
[312854512,1706364641871,-250.51843703,0.00034866,2]
[312854513,1706364641880,-3971.98419525,0.00034998,4]
[312854514,1706364641890,-1000.0,0.00034999,3]
[312854515,1706364641900,-1000.0,0.00034999,3]
[312854516,1706364641909,-1000.0,0.00034999,3]
[312854517,1706364641918,-1000.0,0.00034999,3]
[312854518,1706364641927,-1000.0,0.00034999,3]
[312854519,1706364641937,-1000.0,0.00034999,3]
[312854520,1706364641945,-422.66718412,0.00034999,3]
[312854521,1706364641954,-500.0,0.00034999,7]
[312854522,1706364641963,-176.60188357,0.00034999,7]
[312854523,1706364641972,-500.0,0.00034999,10]
[312854524,1706364641982,-500.0,0.00034999,10]
[312854525,1706364641991,-311.78878247,0.00034999,10]
[312854526,1706364642001,-500.0,0.00034999,10]
[312854527,1706364642010,-500.0,0.00034999,10]
[312854528,1706364642020,-297.72143804,0.00034999,10]
[312854529,1706364642029,-500.0,0.00034999,10]
[312854530,1706364642038,-500.0,0.00034999,10]
[312854531,1706364642047,-500.0,0.00034999,10]
[312854532,1706364642057,-500.0,0.00034999,10]
[312854533,1706364642066,-500.0,0.00034999,10]
[312854534,1706364642075,-500.0,0.00034999,10]
[312854535,1706364642084,-500.0,0.00034999,10]
[312854536,1706364642093,-500.0,0.00034999,10]
[312854537,1706364642102,-500.0,0.00034999,10]
[312854538,1706364642111,-500.0,0.00034999,10]
[312854539,1706364642120,-373.73938568,0.00034999,10]
[312854540,1706364642128,-500.0,0.00034999,10]
[312854541,1706364642137,-532.71939461,0.00034999,10]
[312854542,1706364642146,-500.0,0.00034999,10]
[312854543,1706364642155,-321.69028241,0.00034999,10]
[312854544,1706364642165,-500.0,0.00034999,10]
[312854545,1706364642174,-500.0,0.00034999,10]
[312854546,1706364642183,-500.0,0.00034999,10]
[312854547,1706364642192,-500.0,0.00034999,10]
[312854548,1706364642201,-500.0,0.00034999,10]
[312854549,1706364642211,-500.0,0.00034999,10]
[312854550,1706364642220,-500.0,0.00034999,10]
[312854551,1706364642229,-500.0,0.00034999,10]
[312854552,1706364642238,-500.0,0.00034999,10]
[312854553,1706364642247,-500.0,0.00034999,10]
[312854554,1706364642256,-500.0,0.00034999,10]
[312854555,1706364642265,-500.0,0.00034999,10]
[312854556,1706364642274,-500.0,0.00034999,10]
[312854557,1706364642283,-500.0,0.00034999,10]
[312854558,1706364642292,-500.0,0.00034999,10]
[312854559,1706364642301,-3476.12,0.00034999,2]
[312854560,1706364642310,-42271.13529717,0.00035,2]
[312854561,1706364642319,-64779.66661041,0.00035,15]
[312854562,1706364642328,-54257.25117298,0.00035,2]
[312854563,1706364642337,-592.61828384,0.00035,2]
[312854564,1706364642346,-155.12190431,0.00035,6]
[312854565,1706364642355,-2000.0,0.00035,11]
[312854566,1706364642364,-154.69686,0.00035,2]
[312854567,1706364642373,-151.0,0.00035,2]
[312854568,1706364642382,-300.0,0.00035,18]
[312854569,1706364642391,-179.978939,0.00035,2]
[312854570,1706364642400,-179.978939,0.00035,2]
[312854571,1706364642409,-151.0,0.00035,2]
[312854572,1706364642418,-151.0,0.00035,2]
[312854573,1706364642427,-606.014986,0.00035,2]
[312854574,1706364642436,-606.014986,0.00035,2]
[312854575,1706364642445,-606.014986,0.00035,2]
[312854576,1706364642455,-606.014986,0.00035,2]
[312854577,1706364642463,-3026.607426,0.00035,2]
[312854578,1706364642473,-3026.607426,0.00035,2]
[312854579,1706364642482,-3026.607426,0.00035,2]
[312854580,1706364642491,-3026.607426,0.00035,2]
[312854581,1706364642500,-151.0,0.00035,2]
[312854582,1706364642510,-151.0,0.00035,2]
[312854583,1706364642519,-151.0,0.00035,2]
[312854584,1706364642528,-151.0,0.00035,2]
[312854585,1706364642538,-151.0,0.00035,2]
[312854586,1706364642553,-151.0,0.00035,2]
[312854587,1706364642563,-9735.260304,0.00035,2]
[312854588,1706364642574,-9735.260304,0.00035,2]
[312854589,1706364642584,-9735.260304,0.00035,2]
[312854590,1706364642594,-9735.260304,0.00035,2]
[312854591,1706364642603,-2000.0,0.0003501,11]
[312854592,1706364642612,-2000.0,0.0003502,11]
[312854593,1706364642623,-272.585389,0.00035029,2]
[312854594,1706364642632,-2000.0,0.0003503,11]
[312854595,1706364642641,-2000.0,0.0003504,11]
[312854596,1706364642650,-2000.0,0.0003505,11]
[312854597,1706364642659,-2000.0,0.0003506,12]
[312854598,1706364642668,-2000.0,0.0003507,12]
[312854599,1706364642677,-2000.0,0.0003508,12]
[312854600,1706364642687,-2000.0,0.0003509,12]
[312854601,1706364642696,-2000.0,0.000351,12]
[312854602,1706364642705,-2000.0,0.0003511,12]
[312854603,1706364642715,-2000.0,0.0003512,12]
[312854604,1706364642725,-2000.0,0.0003513,12]
[312854605,1706364642734,-2000.0,0.0003514,12]
[312854606,1706364642744,-2000.0,0.0003515,12]
[312854607,1706364642753,-151.0,0.00035152,4]
[312854608,1706364642762,-2000.0,0.0003516,12]
[312854609,1706364642771,-3482.948512,0.0003517,12]
[312854610,1706364642781,-3486.99741621,0.00035278,4]
[312854611,1706364642790,-302.03322365,0.00035452,4]
[312854612,1706364642799,-278.16121134,0.0003557,2]
[312854613,1706364642808,-1937.904787,0.00035616,120]
[312854614,1706364642818,-500.0,0.0003562,3]
[312854615,1706364642827,-500.0,0.0003562,3]
[312854616,1706364642836,-500.0,0.0003564,3]
[312854617,1706364642845,-500.0,0.0003564,3]
[312854618,1706364642854,-500.0,0.0003566,3]
[312854619,1706364642863,-500.0,0.0003566,3]
[312854620,1706364642872,-50000.0,0.00035662,7]
[312854622,1706364642881,-151.0,0.00035662,2]
[312854624,1706364642890,-151.0,0.00035662,2]
[312854626,1706364642899,-179.978939,0.00035662,2]
[312854628,1706364642908,-179.978939,0.00035662,2]
[312854630,1706364642916,-500.0,0.0003568,3]
[312854632,1706364642926,-500.0,0.0003568,3]
[312854634,1706364642935,-177.54501,0.00035684,2]
[312854636,1706364642944,-213.494709,0.00035684,2]
[312854637,1706364642953,-285.44834,0.00035684,2]
[312854638,1706364642963,-1855.52550416,0.000357,10]
[312854639,1706364642972,-500.0,0.000357,3]
[312854641,1706364642981,-500.0,0.000357,3]
[312854643,1706364642990,-500.0,0.0003572,3]
[312854645,1706364642999,-500.0,0.0003572,3]
[312854646,1706364643007,-3026.607426,0.0003572,2]
[312854649,1706364643016,-3026.607426,0.0003572,2]
[312854650,1706364643028,-151.0,0.0003572,2]
[312854652,1706364643037,-151.0,0.0003572,2]
[312854655,1706364643046,-155.258726,0.0003572,2]
[312854657,1706364643055,-9735.260304,0.0003572,2]
[312854659,1706364643066,-9735.260304,0.0003572,2]
[312854660,1706364643077,-500.0,0.0003574,3]
[312854661,1706364643086,-500.0,0.0003574,3]
[312854662,1706364643094,-619.87708183,0.00035756,4]
[312854663,1706364643103,-151.0,0.00035756,2]
[312854664,1706364643112,-606.014986,0.00035756,2]
[312854665,1706364643121,-606.014986,0.00035756,2]
[312854666,1706364643130,-500.0,0.0003576,3]
[312854667,1706364643139,-500.0,0.0003576,3]
[312854668,1706364643148,-500.0,0.0003578,3]
[312854669,1706364643156,-500.0,0.0003578,3]
[312854670,1706364643165,-7547.07624308,0.000358,3]
[312854671,1706364643174,-500.0,0.000358,3]
[312854672,1706364643183,-500.0,0.000358,3]
[312854673,1706364643192,-500.0,0.0003582,3]
[312854674,1706364643200,-500.0,0.0003582,3]
[312854675,1706364643209,-500.0,0.0003584,3]
[312854676,1706364643218,-500.0,0.0003584,3]
[312854677,1706364643227,-1000.0,0.00035854,2]
[312854678,1706364643236,-500.0,0.0003586,3]
[312854679,1706364643245,-500.0,0.0003586,3]
[312854680,1706364643254,-500.0,0.0003588,3]
[312854681,1706364643263,-500.0,0.0003588,3]
[312854682,1706364643272,-241103.18967107,0.000359,2]
[312854683,1706364643281,-151.0,0.000359,2]
[312854684,1706364643290,-151.0,0.000359,2]
[312854685,1706364643299,-6053.52992283,0.000359,2]
[312854686,1706364643343,-4485.0443561,0.000359,2]
[312854687,1706364643421,-151.0,0.000359,2]
[312854688,1706364643430,-179.978939,0.000359,2]
[312854689,1706364643438,-179.978939,0.000359,2]
[312854690,1706364643447,-150.70062205,0.000359,2]
[312854691,1706364643456,-606.014986,0.000359,2]
[312854692,1706364643465,-606.014986,0.000359,2]
[312854693,1706364643473,-500.0,0.000359,3]
[312854694,1706364643482,-500.0,0.000359,3]
[312854695,1706364643491,-2844.11669473,0.000359,2]
[312854696,1706364643784,-2179.42258337,0.00034999,2]
[312854697,1706364643796,-1296.69741663,0.00034999,2]
[312854698,1706364643806,-3476.12,0.00034999,2]
[312854699,1706364643815,-3476.12,0.00034999,2]
[312854700,1706364643824,-3476.12,0.00034999,2]
[312854701,1706364643833,-3476.12,0.00034999,2]
[312854702,1706364643843,-1683.6265546,0.00034999,2]
[312854703,1706364643854,-514.24652146,0.00034999,2]
[312854704,1706364644390,-1278.24692394,0.00034999,2]
[312854705,1706364644399,-3476.12,0.00034999,2]
[312854706,1706364644408,-3476.12,0.00034999,2]
[312854707,1706364644418,-23.96351273,0.00034999,2]
[312854708,1706364644519,155.01860223,0.0002018,4]
[312854737,1706364646448,-937.92643854,0.00015545,2]
[312854738,1706364646459,-156.12493108,0.00020179,2]
[312854739,1706364646468,-160.97621703,0.0002018,2]
[312854740,1706364646477,-2161.36652727,0.00020999,2]
[312854741,1706364646486,-163.42258871,0.00020999,2]
[312854742,1706364646496,-13004.32822944,0.00034998,4]
[312854743,1706364646505,-3452.15648727,0.00034999,2]
[312854744,1706364646514,-20736.11015467,0.00035677,7]
[312854748,1706364658909,535.60419036,0.00013994,2]
[312854749,1706364949494,155.01860223,0.00020175,4]
[312854752,1706365031012,155.01860223,0.00021915,4]
[312854753,1706365047006,155.01860223,0.00020174,4]
[312854754,1706365061008,155.01860223,0.00020174,4]
[312854755,1706365079513,155.01860223,0.00020174,4]
[312854757,1706365439063,155.01860223,0.00016923,3]
[312854758,1706365457569,155.01860223,0.0001523,2]
[312854759,1706365477608,155.01860223,0.0001523,2]
[312854760,1706365497580,155.01860223,0.00015227,2]
[312854761,1706365518090,155.01860223,0.00015227,2]
[312854762,1706365538139,155.01860223,0.00015227,2]
[312854763,1706365564077,155.01860223,0.00015221,2]
[312854764,1706365579801,3145.82282177,0.00015417,2]
[312854765,1706365579829,1057.73132333,0.00015417,2]
[312854766,1706365586579,155.01860223,0.00015221,2]
[312854767,1706365604583,155.01860223,0.00014323,2]
[312854768,1706365622583,155.01860223,0.00014323,2]
[312854769,1706365641089,155.01860223,0.00014323,2]
[312854770,1706365659091,155.01860223,0.00014321,2]
[312854771,1706365679098,155.01860223,0.00014318,2]
[312854772,1706365693602,155.01860223,0.00014318,2]
[312854773,1706365713602,155.01860223,0.00014318,2]
[312854774,1706365739608,155.01860223,0.00014314,2]
[312854775,1706365754228,155.01860223,0.00014314,2]
[312854781,1706365776106,155.01860223,0.00014314,2]
[312854782,1706365798121,155.01860223,0.00014168,2]
[312854783,1706365818618,155.01860223,0.00014167,2]
[312854866,1706365836632,155.01860223,0.00014167,2]
[312854902,1706365838458,-181.11768672,0.00015643,2]
[312854904,1706365838467,-169.73510145,0.00015644,2]
[312854906,1706365838476,-1012.64629097,0.00015738,2]
[312854908,1706365838485,-1697.2441966,0.00015739,2]
[312854910,1706365838494,-500.0,0.0001574,2]
[312854912,1706365838503,-521.0,0.00015741,2]
[312854914,1706365838512,-20915.89787581,0.00015741,2]
[312854916,1706365838521,-1742.30413686,0.00015742,2]
[312854918,1706365838531,-522.50744065,0.00015742,2]
[312854920,1706365838540,-595.56031941,0.00015743,2]
[312854922,1706365838549,-81256.3314766,0.00015743,2]
[312854924,1706365838559,-688.5172537,0.00015744,2]
[312854927,1706365838569,-21697.17964081,0.00015745,2]
[312854929,1706365838578,-174.07552612,0.00015819,2]
[312854930,1706365838587,-471.05101678,0.00015915,2]
[312854932,1706365838596,-2105.3133158,0.00015915,2]
[312854934,1706365838605,-16864.70031315,0.00015915,2]
[312854936,1706365838615,-213.595546,0.00015915,2]
[312854938,1706365838624,-2102.8255172,0.00015916,2]
[312854940,1706365838633,-535.1612977,0.0001592,2]
[312854943,1706365838642,-13469.66647455,0.00016917,2]
[312854944,1706365838651,-155.32067987,0.00016919,2]
[312854946,1706365838661,-155.41458436,0.0001692,2]
[312854948,1706365838670,-1770.34802153,0.0001692,2]
[312854951,1706365838679,-167.32933478,0.0001692,2]
[312854952,1706365838689,-279.52693458,0.00016923,2]
[312854955,1706365838698,-588.69915361,0.00016923,2]
[312854956,1706365838707,-225.62064487,0.00016923,2]
[312854958,1706365838717,-203.02463947,0.00016923,2]
[312854961,1706365838727,-625.17876758,0.00016923,2]
[312854962,1706365838736,-717.70891174,0.00016923,2]
[312854965,1706365838746,-230.81497573,0.00016923,2]
[312854967,1706365838755,-155.40863944,0.00016923,2]
[312854969,1706365838764,-265.67702683,0.00016923,2]
[312854970,1706365838773,-189.98883944,0.00016923,2]
[312854973,1706365838782,-329.79784935,0.00016923,2]
[312854974,1706365838792,-208.59620441,0.00016923,2]
[312854976,1706365838802,-157.33639088,0.00016923,2]
[312854978,1706365838811,-1026.83362731,0.00016923,2]
[312854980,1706365838819,-1296.57964106,0.00016923,2]
[312854993,1706365838923,-243.19997644,0.00016923,2]
[312854995,1706365838934,-227.73971285,0.00016923,2]
[312854997,1706365838943,-198.53620999,0.00016923,2]
[312854999,1706365838952,-170.05097642,0.00016923,2]
[312855001,1706365838963,-198.61153431,0.00016923,2]
[312855003,1706365838973,-632.96828925,0.00016923,2]
[312855005,1706365838982,-159.13769746,0.00016923,2]
[312855007,1706365838991,-309.70578029,0.00016923,2]
[312855009,1706365839000,-155.16232386,0.00016923,2]
[312855011,1706365839010,-197.01943793,0.00016923,2]
[312855013,1706365839019,-273.47586629,0.00016923,2]
[312855015,1706365839028,-2001.80790077,0.00016923,2]
[312855017,1706365839038,-6902.72272413,0.00016923,2]
[312855019,1706365839048,-24900.0,0.00016925,2]
[312855021,1706365839057,-1583.7528565,0.00019,2]
[312855023,1706365839066,-166.892441,0.00019178,2]
[312855025,1706365839075,-155.01860223,0.0002,2]
[312855027,1706365839084,-679.3029243,0.0002,2]
[312855028,1706365839093,-387.16006083,0.0002,2]
[312855031,1706365839103,-1199.09633829,0.0002,2]
[312855033,1706365839113,-200.0,0.0002,2]
[312855035,1706365839122,-151.53333552,0.0002,2]
[312855037,1706365839131,-539.43686012,0.00020174,2]
[312855039,1706365839140,-2084.071023,0.00020174,2]
[312855041,1706365839149,-759.80109962,0.00020174,2]
[312855043,1706365839159,-482.4648588,0.00020179,2]
[312855045,1706365839169,-174.07552609,0.00020564,2]
[312855047,1706365839179,-1827.7377922,0.00021,2]
[312855049,1706365839188,-500.0,0.00021917,2]
[312855051,1706365839197,-500.0,0.00021917,2]
[312855053,1706365839206,-500.0,0.00021917,2]
[312855055,1706365839215,-500.0,0.00021917,2]
[312855057,1706365839225,-500.0,0.00021917,2]
[312855059,1706365839234,-500.0,0.00021917,2]
[312855061,1706365839243,-619.87643609,0.00021917,2]
[312855063,1706365839252,-166.666666,0.00021918,2]
[312855065,1706365839262,-327.61566675,0.00022,2]
[312855067,1706365839271,-426.38170713,0.00022,2]
[312855069,1706365839280,-3971.98419525,0.00022,2]
[312855071,1706365839290,-164.09330822,0.00022,2]
[312855073,1706365839301,-2033.37480073,0.00022,2]
[312855075,1706365839310,-166.666666,0.00022431,2]
[312855077,1706365839319,-166.666666,0.00022944,2]
[312855078,1706365839329,-9947.92180076,0.00023,2]
[312855080,1706365839338,-166.666666,0.00023456,2]
[312855081,1706365839347,-2009.31889645,0.00023948,2]
[312855083,1706365839356,-166.666666,0.00023969,2]
[312855084,1706365839366,-4017.99473219,0.00024,2]
[312855086,1706365839375,-166.666666,0.00024482,2]
[312855088,1706365839383,-851.06760342,0.00025,2]
[312855090,1706365839392,-1828.18039739,0.00025,2]
[312855092,1706365839401,-7389.4786433,0.00025,2]
[312855094,1706365839410,-174.07552609,0.0002531,2]
[312855096,1706365839419,-162.289695,0.00025338,2]
[312855098,1706365839428,-290.6944281,0.00027,2]
[312855100,1706365839437,-623.01783127,0.0002728,2]
[312855102,1706365839446,-13720.7,0.00027397,3]
[312855104,1706365839455,-11433.92,0.00027397,3]
[312855106,1706365839465,-9528.27,0.00027397,3]
[312855108,1706365839474,-7940.22,0.00027397,3]
[312855110,1706365839483,-3193.56181162,0.000275,2]
[312855112,1706365839492,-556.2457431,0.00028,2]
[312855114,1706365839501,-620.15089156,0.00028644,2]
[312855116,1706365839510,-7196.06854955,0.00029,4]
[312855118,1706365839519,-1933.42796518,0.00029,2]
[312855120,1706365839528,-1000.0,0.00029,2]
[312855122,1706365839538,-997.9653611,0.00029,2]
[312855124,1706365839546,-28726.49014259,0.00029724,4]
[312855126,1706365839556,-5000.0,0.00029724,5]
[312855128,1706365839565,-6666.33770312,0.00029724,2]
[312855130,1706365839574,-50000.0,0.00029724,4]
[312855132,1706365839583,-73870.47086124,0.00029724,4]
[312855134,1706365839592,-5000.0,0.00029724,5]
[312855136,1706365839601,-1351.41867459,0.00029724,2]
[312855138,1706365839610,-3486.99741621,0.00029988,2]
[312855140,1706365839619,-2512.042803,0.00029998,2]
[312855142,1706365839628,-157.99274934,0.0003,4]
[312855144,1706365839637,-47720.0,0.0003,5]
[312855146,1706365839646,-155.01860223,0.0003,4]
[312855148,1706365839655,-244.44828906,0.0003,4]
[312855150,1706365839663,-689.09430435,0.0003,4]
[312855152,1706365839672,-195.57103754,0.0003,2]
[312855154,1706365839682,-254.87264804,0.0003,2]
[312855156,1706365839691,-155.01860223,0.0003,4]
[312855158,1706365839701,-174.07552609,0.00030055,2]
[312855160,1706365839710,-620.00754458,0.00030076,2]
[312855162,1706365839719,-153.0,0.00030137,2]
[312855164,1706365839728,-153.0,0.00030137,2]
[312855166,1706365839737,-153.0,0.00030137,2]
[312855168,1706365839746,-153.0,0.00030137,2]
[312855170,1706365839755,-153.0,0.00030137,2]
[312855172,1706365839764,-153.0,0.00030137,2]
[312855174,1706365839773,-153.0,0.00030137,2]
[312855176,1706365839782,-199.4415769,0.00030137,2]
[312855178,1706365839791,-153.0,0.00030137,2]
[312855180,1706365839799,-153.0,0.00030137,2]
[312855182,1706365839808,-153.0,0.00030137,2]
[312855184,1706365839817,-153.0,0.00030137,2]
[312855186,1706365839826,-153.0,0.00030137,2]
[312855188,1706365839835,-199.4415769,0.00030137,2]
[312855190,1706365839844,-153.0,0.00030137,2]
[312855192,1706365839852,-317.486678,0.00030137,2]
[312855194,1706365839861,-153.0,0.00030137,2]
[312855196,1706365839872,-153.0,0.00030137,2]
[312855198,1706365839880,-199.4415769,0.00030137,2]
[312855200,1706365839889,-153.0,0.00030137,2]
[312855202,1706365839898,-153.0,0.00030137,2]
[312855204,1706365839907,-199.4415769,0.00030137,2]
[312855206,1706365839916,-158.81503,0.00030137,2]
[312855208,1706365839925,-272.585389,0.00030137,2]
[312855210,1706365839934,-272.585389,0.00031115,2]
[312855212,1706365839943,-620.00037723,0.0003158,2]
[312855214,1706365839952,-158.81503,0.00031703,2]
[312855216,1706365839962,-897.97777174,0.00032,7]
[312855218,1706365839973,-272.585389,0.00032094,2]
[312855220,1706365839982,-500.0,0.00032594,7]
[312855222,1706365839991,-158.06765206,0.00032594,7]
[312855224,1706365840000,-500.0,0.00032594,7]
[312855226,1706365840009,-172.73238116,0.00032594,7]
[312855228,1706365840018,-500.0,0.00032594,7]
[312855230,1706365840027,-335.28077481,0.00032594,7]
[312855232,1706365840037,-500.0,0.00032594,7]
[312855234,1706365840047,-500.0,0.00032594,7]
[312855236,1706365840057,-500.0,0.00032594,7]
[312855238,1706365840065,-500.0,0.00032594,7]
[312855240,1706365840074,-500.0,0.00032594,7]
[312855242,1706365840083,-500.0,0.00032594,7]
[312855244,1706365840092,-500.0,0.00032594,7]
[312855246,1706365840101,-500.0,0.00032594,7]
[312855248,1706365840110,-500.0,0.00032594,7]
[312855250,1706365840119,-498.2,0.00032594,7]
[312855252,1706365840127,-500.0,0.00032594,7]
[312855254,1706365840137,-500.0,0.00032594,7]
[312855256,1706365840145,-500.0,0.00032594,7]
[312855258,1706365840154,-500.0,0.00032594,7]
[312855260,1706365840163,-500.0,0.00032594,7]
[312855262,1706365840173,-500.0,0.00032594,7]
[312855264,1706365840182,-500.0,0.00032594,7]
[312855266,1706365840191,-451.13072995,0.00032594,7]
[312855268,1706365840200,-500.0,0.00032594,7]
[312855270,1706365840209,-500.0,0.00032594,7]
[312855272,1706365840218,-500.0,0.00032594,7]
[312855274,1706365840227,-500.0,0.00032594,7]
[312855276,1706365840236,-500.0,0.00032594,7]
[312855278,1706365840245,-500.0,0.00032594,7]
[312855280,1706365840254,-500.0,0.00032594,7]
[312855282,1706365840262,-500.0,0.00032594,7]
[312855284,1706365840272,-500.0,0.00032594,7]
[312855286,1706365840281,-500.0,0.00032594,7]
[312855288,1706365840291,-500.0,0.00032594,7]
[312855290,1706365840300,-500.0,0.00032594,7]
[312855292,1706365840309,-500.0,0.00032594,7]
[312855294,1706365840319,-500.0,0.00032594,7]
[312855296,1706365840328,-500.0,0.00032594,7]
[312855298,1706365840337,-500.0,0.00032594,7]
[312855300,1706365840347,-500.0,0.00032594,7]
[312855307,1706365840415,-500.0,0.00032594,7]
[312855308,1706365840431,-500.0,0.00032594,7]
[312855309,1706365840441,-500.0,0.00032594,7]
[312855310,1706365840449,-500.0,0.00032594,7]
[312855311,1706365840458,-500.0,0.00032594,7]
[312855312,1706365840467,-500.0,0.00032594,7]
[312855313,1706365840476,-500.0,0.00032594,7]
[312855314,1706365840484,-500.0,0.00032594,7]
[312855315,1706365840493,-500.0,0.00032594,7]
[312855316,1706365840502,-500.0,0.00032594,7]
[312855317,1706365840511,-500.0,0.00032594,7]
[312855318,1706365840520,-500.0,0.00032594,7]
[312855320,1706365840529,-500.0,0.00032594,7]
[312855322,1706365840538,-500.0,0.00032594,7]
[312855324,1706365840547,-500.0,0.00032594,7]
[312855326,1706365840556,-500.0,0.00032594,7]
[312855327,1706365840565,-500.0,0.00032594,7]
[312855329,1706365840574,-500.0,0.00032594,7]
[312855330,1706365840583,-500.0,0.00032594,7]
[312855331,1706365840592,-500.0,0.00032594,7]
[312855332,1706365840601,-500.0,0.00032594,7]
[312855333,1706365840610,-500.0,0.00032594,7]
[312855334,1706365840619,-500.0,0.00032594,7]
[312855335,1706365840628,-500.0,0.00032594,7]